[Event "Late-Titled-Tuesday-Blitz-August-29-2023"]
[Site "Chess.com"]
[Date "2023.08.29"]
[Round "3"]
[White "NMJeevanK"]
[Black "The_Princess_Moon"]
[Result "1-0"]
[WhiteElo "2527"]
[BlackElo "2224"]
[TimeControl "180+1"]
[EndTime "14:27:09 PDT"]
[Termination "NMJeevanK won by resignation"]

1. g3 {[%clk 0:03:00.9]} 1... c5 {[%clk 0:03:00.9]} 2. Bg2 {[%clk 0:03:00.9]}
2... Nc6 {[%clk 0:02:58.5]} 3. Nf3 {[%clk 0:02:59.6]} 3... d6 {[%clk 0:02:59]}
4. O-O {[%clk 0:03:00.2]} 4... Nf6 {[%clk 0:02:56.7]} 5. d3 {[%clk 0:03:00.1]}
5... h5 {[%clk 0:02:55]} 6. e4 {[%clk 0:02:56.3]} 6... g6 {[%clk 0:02:53.5]} 7.
Bg5 {[%clk 0:02:52]} 7... Bg4 {[%clk 0:02:52.7]} 8. h3 {[%clk 0:02:46.3]} 8...
Be6 {[%clk 0:02:52.3]} 9. Nc3 {[%clk 0:02:33.6]} 9... Bg7 {[%clk 0:02:48.9]} 10.
Re1 {[%clk 0:02:32.4]} 10... Qd7 {[%clk 0:02:47.4]} 11. Kh2 {[%clk 0:02:18.3]}
11... Nd4 {[%clk 0:02:31.2]} 12. Nxd4 {[%clk 0:02:15.6]} 12... cxd4 {[%clk
0:02:32.1]} 13. Ne2 {[%clk 0:02:16.1]} 13... Nh7 {[%clk 0:02:23.5]} 14. Bd2
{[%clk 0:02:10.9]} 14... O-O {[%clk 0:02:22]} 15. f4 {[%clk 0:02:07.3]} 15...
Qb5 {[%clk 0:02:11.5]} 16. b3 {[%clk 0:01:58.4]} 16... Rac8 {[%clk 0:02:05.1]}
17. f5 {[%clk 0:01:54.7]} 17... Bd7 {[%clk 0:01:49.3]} 18. Nf4 {[%clk
0:01:53.3]} 18... f6 {[%clk 0:01:46.7]} 19. fxg6 {[%clk 0:01:42.9]} 19... Ng5
{[%clk 0:01:39.6]} 20. Nd5 {[%clk 0:01:43]} 20... Rfe8 {[%clk 0:01:25.7]} 21.
Qxh5 {[%clk 0:01:34]} 21... e6 {[%clk 0:01:01.4]} 22. Bxg5 {[%clk 0:01:16.9]}
22... exd5 {[%clk 0:00:53]} 23. Bxf6 {[%clk 0:01:02.2]} 23... Re7 {[%clk
0:00:22]} 24. Qh7+ {[%clk 0:00:52.5]} 24... Kf8 {[%clk 0:00:20.3]} 25. Bxg7+
{[%clk 0:00:46.6]} 25... Rxg7 {[%clk 0:00:16.4]} 26. Rf1+ {[%clk 0:00:46.7]}
26... Ke7 {[%clk 0:00:15.5]} 27. Qxg7+ {[%clk 0:00:46.6]} 27... Kd8 {[%clk
0:00:16.1]} 28. Rf8+ {[%clk 0:00:43]} 28... Kc7 {[%clk 0:00:16.1]} 29. Rxc8+
{[%clk 0:00:43.2]} 29... Kxc8 {[%clk 0:00:17]} 30. Qxd4 {[%clk 0:00:42.8]} 30...
Kb8 {[%clk 0:00:16.9]} 31. g7 {[%clk 0:00:42.7]} 31... Be6 {[%clk 0:00:16.1]}
32. exd5 {[%clk 0:00:42.5]} 32... Bg8 {[%clk 0:00:14.4]} 33. Rf1 {[%clk
0:00:42]} 1-0

[Event "Late-Titled-Tuesday-Blitz-August-29-2023"]
[Site "Chess.com"]
[Date "2023.08.29"]
[Round "3"]
[White "HajiyevKanan"]
[Black "FredddieCroderg"]
[Result "1-0"]
[WhiteElo "2484"]
[BlackElo "2313"]
[TimeControl "180+1"]
[EndTime "14:27:10 PDT"]
[Termination "HajiyevKanan won by checkmate"]

1. d4 {[%clk 0:03:00.9]} 1... d6 {[%clk 0:02:52.2]} 2. Nf3 {[%clk 0:03:01.8]}
2... Bd7 {[%clk 0:02:49.7]} 3. c4 {[%clk 0:03:02.7]} 3... g6 {[%clk 0:02:46.7]}
4. g3 {[%clk 0:03:03.6]} 4... Bg7 {[%clk 0:02:46.7]} 5. Bg2 {[%clk 0:03:04.5]}
5... Nf6 {[%clk 0:02:46.7]} 6. Ng5 {[%clk 0:03:05.4]} 6... Qc8 {[%clk
0:02:25.7]} 7. Bxb7 {[%clk 0:03:06.3]} 7... Qxb7 {[%clk 0:02:23.5]} 8. O-O
{[%clk 0:02:49.4]} 8... h5 {[%clk 0:02:09.9]} 9. d5 {[%clk 0:02:46.6]} 9... h4
{[%clk 0:02:06.4]} 10. e4 {[%clk 0:02:42.8]} 10... hxg3 {[%clk 0:02:05.3]} 11.
hxg3 {[%clk 0:02:43.1]} 11... c5 {[%clk 0:02:01.2]} 12. Nc3 {[%clk 0:02:43.1]}
12... a6 {[%clk 0:02:00]} 13. f4 {[%clk 0:02:42.9]} 13... Qc8 {[%clk 0:01:58.5]}
14. e5 {[%clk 0:02:42.9]} 14... Nh5 {[%clk 0:01:36.8]} 15. Kg2 {[%clk 0:02:35]}
15... Bg4 {[%clk 0:01:30.6]} 16. Qa4+ {[%clk 0:02:31.5]} 16... Kf8 {[%clk
0:01:28.1]} 17. e6 {[%clk 0:02:16.2]} 17... f6 {[%clk 0:01:19]} 18. Nf7 {[%clk
0:02:14.6]} 18... Rh7 {[%clk 0:01:13.2]} 19. Qa5 {[%clk 0:01:57.3]} 19... Ra7
{[%clk 0:00:51.2]} 20. f5 {[%clk 0:01:51.4]} 20... gxf5 {[%clk 0:00:46.2]} 21.
Be3 {[%clk 0:01:37.4]} 21... f4 {[%clk 0:00:44.7]} 22. gxf4 {[%clk 0:01:34.6]}
22... f5 {[%clk 0:00:38]} 23. Rh1 {[%clk 0:01:28.2]} 23... Rb7 {[%clk
0:00:29.8]} 24. Rab1 {[%clk 0:01:24]} 24... Rc7 {[%clk 0:00:22.2]} 25. Na4
{[%clk 0:01:15.4]} 25... Bd4 {[%clk 0:00:17.6]} 26. Bd2 {[%clk 0:01:08.4]} 26...
Rg7 {[%clk 0:00:16.4]} 27. Ng5 {[%clk 0:01:05.8]} 27... Qb7 {[%clk 0:00:11.9]}
28. b4 {[%clk 0:01:02.1]} 28... cxb4 {[%clk 0:00:10.9]} 29. Rxb4 {[%clk
0:01:01.2]} 29... Qa7 {[%clk 0:00:10.8]} 30. Nb6 {[%clk 0:00:57.8]} 30... Be3
{[%clk 0:00:10.6]} 31. Bxe3 {[%clk 0:00:57.4]} 31... Nc6 {[%clk 0:00:10.3]} 32.
dxc6 {[%clk 0:00:53.2]} 32... Qb8 {[%clk 0:00:09.9]} 33. Nd7+ {[%clk 0:00:52.9]}
33... Rxd7 {[%clk 0:00:09.8]} 34. Rxb8+ {[%clk 0:00:52.9]} 34... Rd8 {[%clk
0:00:06.6]} 35. Rxd8# {[%clk 0:00:49.1]} 1-0

[Event "Late-Titled-Tuesday-Blitz-August-29-2023"]
[Site "Chess.com"]
[Date "2023.08.29"]
[Round "3"]
[White "Thjop"]
[Black "FaustinoOro"]
[Result "1-0"]
[WhiteElo "2704"]
[BlackElo "2896"]
[TimeControl "180+1"]
[EndTime "14:27:13 PDT"]
[Termination "Thjop won by resignation"]

1. d4 {[%clk 0:03:00.9]} 1... Nf6 {[%clk 0:02:47.1]} 2. g3 {[%clk 0:03:01]} 2...
d5 {[%clk 0:02:45]} 3. Bg2 {[%clk 0:03:01.3]} 3... e6 {[%clk 0:02:43.2]} 4. Nf3
{[%clk 0:03:01.7]} 4... Be7 {[%clk 0:02:42.7]} 5. c4 {[%clk 0:03:01.1]} 5... O-O
{[%clk 0:02:42.5]} 6. O-O {[%clk 0:03:01.4]} 6... dxc4 {[%clk 0:02:43.1]} 7. Qc2
{[%clk 0:03:01.2]} 7... b5 {[%clk 0:02:38.8]} 8. a4 {[%clk 0:03:00.5]} 8... b4
{[%clk 0:02:38.7]} 9. Nbd2 {[%clk 0:03:00.3]} 9... Bb7 {[%clk 0:02:31.7]} 10.
Nxc4 {[%clk 0:02:57.4]} 10... c5 {[%clk 0:02:21.9]} 11. dxc5 {[%clk 0:02:57.3]}
11... Bxc5 {[%clk 0:02:21.7]} 12. Qd1 {[%clk 0:02:57.6]} 12... Qe7 {[%clk
0:02:14.2]} 13. Be3 {[%clk 0:02:49.8]} 13... Bxe3 {[%clk 0:02:07.8]} 14. Nxe3
{[%clk 0:02:50.7]} 14... Nbd7 {[%clk 0:02:07.4]} 15. Nd4 {[%clk 0:02:46.3]}
15... Bxg2 {[%clk 0:02:06.8]} 16. Kxg2 {[%clk 0:02:47.2]} 16... Nc5 {[%clk
0:02:06.1]} 17. Nb3 {[%clk 0:02:28]} 17... Rfd8 {[%clk 0:01:43.3]} 18. Qc2
{[%clk 0:02:27.7]} 18... Nce4 {[%clk 0:01:39.4]} 19. Rac1 {[%clk 0:02:24.5]}
19... h5 {[%clk 0:01:35.2]} 20. h3 {[%clk 0:02:15.7]} 20... a5 {[%clk
0:01:26.6]} 21. Rfd1 {[%clk 0:02:15.2]} 21... Nd6 {[%clk 0:01:09]} 22. Nc4
{[%clk 0:02:08.7]} 22... Nxc4 {[%clk 0:01:01.8]} 23. Rxd8+ {[%clk 0:02:09.6]}
23... Rxd8 {[%clk 0:01:01.5]} 24. Qxc4 {[%clk 0:02:09.9]} 24... Rd5 {[%clk
0:00:55.5]} 25. e4 {[%clk 0:02:02.9]} 25... Re5 {[%clk 0:00:36.5]} 26. Nc5
{[%clk 0:01:49.1]} 26... Qd6 {[%clk 0:00:30.5]} 27. Rc2 {[%clk 0:01:23.5]} 27...
Rg5 {[%clk 0:00:22.8]} 28. Nd3 {[%clk 0:01:17.9]} 28... e5 {[%clk 0:00:13.1]}
29. Ne1 {[%clk 0:01:01.4]} 29... Qd1 {[%clk 0:00:08.7]} 30. Nf3 {[%clk
0:00:59.9]} 30... Rg6 {[%clk 0:00:01.2]} 31. Nh4 {[%clk 0:00:52.4]} 31... Rg5
{[%clk 0:00:01.1]} 32. Nf3 {[%clk 0:00:47.5]} 32... Rg6 {[%clk 0:00:01.8]} 33.
Rd2 {[%clk 0:00:48.1]} 33... Qc1 {[%clk 0:00:01.7]} 34. Qxc1 {[%clk 0:00:47.7]}
1-0

[Event "Late-Titled-Tuesday-Blitz-August-29-2023"]
[Site "Chess.com"]
[Date "2023.08.29"]
[Round "3"]
[White "Lennis93"]
[Black "Vladimir_Zakhartsov"]
[Result "0-1"]
[WhiteElo "2692"]
[BlackElo "2920"]
[TimeControl "180+1"]
[EndTime "14:27:17 PDT"]
[Termination "Vladimir_Zakhartsov won on time"]

1. c4 {[%clk 0:02:59.4]} 1... e6 {[%clk 0:02:59.8]} 2. Nf3 {[%clk 0:02:55.5]}
2... d5 {[%clk 0:02:59.4]} 3. g3 {[%clk 0:02:55.8]} 3... Nf6 {[%clk 0:02:55.8]}
4. Bg2 {[%clk 0:02:56.1]} 4... b6 {[%clk 0:02:47.2]} 5. O-O {[%clk 0:02:53.1]}
5... Bb7 {[%clk 0:02:47.1]} 6. Ne5 {[%clk 0:02:43.5]} 6... Nbd7 {[%clk
0:02:45.8]} 7. Qa4 {[%clk 0:02:30.9]} 7... Bd6 {[%clk 0:02:40.5]} 8. d4 {[%clk
0:02:23.6]} 8... O-O {[%clk 0:02:35.1]} 9. Nxd7 {[%clk 0:02:19.8]} 9... Nxd7
{[%clk 0:02:30.9]} 10. Nc3 {[%clk 0:02:17.4]} 10... Nf6 {[%clk 0:02:19.9]} 11.
Bg5 {[%clk 0:02:15.7]} 11... Be7 {[%clk 0:02:15.9]} 12. cxd5 {[%clk 0:02:01.5]}
12... exd5 {[%clk 0:02:12.7]} 13. Qb3 {[%clk 0:01:52.3]} 13... c6 {[%clk
0:02:02.2]} 14. Rad1 {[%clk 0:01:51.6]} 14... h6 {[%clk 0:02:00.7]} 15. Bxf6
{[%clk 0:01:50.7]} 15... Bxf6 {[%clk 0:02:01.2]} 16. e4 {[%clk 0:01:50.9]} 16...
dxe4 {[%clk 0:02:01]} 17. Bxe4 {[%clk 0:01:38.7]} 17... Qd7 {[%clk 0:01:44.4]}
18. d5 {[%clk 0:01:16.6]} 18... c5 {[%clk 0:01:39.1]} 19. d6 {[%clk 0:01:15]}
19... Bxe4 {[%clk 0:01:31.6]} 20. Nxe4 {[%clk 0:01:15.8]} 20... Bd4 {[%clk
0:01:31.4]} 21. Qd5 {[%clk 0:01:14.2]} 21... Rae8 {[%clk 0:01:28.1]} 22. Rfe1
{[%clk 0:01:09.4]} 22... Re5 {[%clk 0:01:18.4]} 23. Qc4 {[%clk 0:00:31.2]} 23...
Rfe8 {[%clk 0:01:14.9]} 24. Rxd4 {[%clk 0:00:16.7]} 24... cxd4 {[%clk
0:01:14.5]} 25. f3 {[%clk 0:00:17.1]} 25... Qe6 {[%clk 0:00:46.1]} 26. Rc1
{[%clk 0:00:08.6]} 26... Qxc4 {[%clk 0:00:42.4]} 27. Rxc4 {[%clk 0:00:07.7]}
27... Rd5 {[%clk 0:00:42.8]} 0-1

[Event "Late-Titled-Tuesday-Blitz-August-29-2023"]
[Site "Chess.com"]
[Date "2023.08.29"]
[Round "3"]
[White "Ajedrez_con_German"]
[Black "superfast64"]
[Result "1-0"]
[WhiteElo "2661"]
[BlackElo "2452"]
[TimeControl "180+1"]
[EndTime "14:27:22 PDT"]
[Termination "Ajedrez_con_German won by resignation"]

1. b3 {[%clk 0:02:52.6]} 1... d5 {[%clk 0:02:59.9]} 2. Bb2 {[%clk 0:02:47.2]}
2... Bf5 {[%clk 0:03:00.3]} 3. e3 {[%clk 0:02:47.3]} 3... e6 {[%clk 0:03:00.4]}
4. Nf3 {[%clk 0:02:47.7]} 4... Nd7 {[%clk 0:03:00.4]} 5. d4 {[%clk 0:02:47.9]}
5... c6 {[%clk 0:03:00.3]} 6. Bd3 {[%clk 0:02:48.3]} 6... Ngf6 {[%clk
0:03:00.3]} 7. O-O {[%clk 0:02:48.4]} 7... Bd6 {[%clk 0:02:59.9]} 8. c4 {[%clk
0:02:48.7]} 8... Qe7 {[%clk 0:02:59.2]} 9. a4 {[%clk 0:02:48.5]} 9... h6 {[%clk
0:02:58.7]} 10. Ba3 {[%clk 0:02:48.3]} 10... Bxa3 {[%clk 0:02:52.1]} 11. Nxa3
{[%clk 0:02:48.2]} 11... Bxd3 {[%clk 0:02:52.2]} 12. Qxd3 {[%clk 0:02:48.1]}
12... Ne4 {[%clk 0:02:53.1]} 13. Nd2 {[%clk 0:02:45.8]} 13... f5 {[%clk
0:02:52.1]} 14. f4 {[%clk 0:02:45.5]} 14... Nxd2 {[%clk 0:02:50.6]} 15. Qxd2
{[%clk 0:02:45.6]} 15... Nf6 {[%clk 0:02:50.5]} 16. Nb1 {[%clk 0:02:44.4]} 16...
Ne4 {[%clk 0:02:50.3]} 17. Qc2 {[%clk 0:02:44.2]} 17... g5 {[%clk 0:02:47.8]}
18. Nc3 {[%clk 0:02:38.7]} 18... gxf4 {[%clk 0:02:44.3]} 19. Nxe4 {[%clk
0:02:38.3]} 19... fxe4 {[%clk 0:02:41.7]} 20. Rxf4 {[%clk 0:02:38.2]} 20...
O-O-O {[%clk 0:02:38.7]} 21. Raf1 {[%clk 0:02:32.9]} 21... Rdf8 {[%clk
0:02:38.8]} 22. Qf2 {[%clk 0:02:32.5]} 22... Rxf4 {[%clk 0:02:34.4]} 23. Qxf4
{[%clk 0:02:33.4]} 23... h5 {[%clk 0:02:28.6]} 24. c5 {[%clk 0:02:32.1]} 24...
Rg8 {[%clk 0:02:24.8]} 25. Qf6 {[%clk 0:02:23.5]} 25... Qxf6 {[%clk 0:02:17.6]}
26. Rxf6 {[%clk 0:02:24.4]} 26... Kd7 {[%clk 0:02:14.5]} 27. Rf7+ {[%clk
0:02:24.8]} 27... Kc8 {[%clk 0:02:14.7]} 28. Kf2 {[%clk 0:02:06.2]} 28... Rg6
{[%clk 0:02:00.2]} 29. Rh7 {[%clk 0:01:51.9]} 29... Rg5 {[%clk 0:01:56]} 30. Re7
{[%clk 0:01:39.6]} 30... Rg6 {[%clk 0:01:54.6]} 31. b4 {[%clk 0:01:32.8]} 31...
Kb8 {[%clk 0:01:47.8]} 32. b5 {[%clk 0:01:32.5]} 32... cxb5 {[%clk 0:01:43.2]}
33. axb5 {[%clk 0:01:32.7]} 33... a5 {[%clk 0:01:43.9]} 34. b6 {[%clk 0:01:27]}
34... Kc8 {[%clk 0:01:41.4]} 35. Re8+ {[%clk 0:01:25.8]} 35... Kd7 {[%clk
0:01:41.4]} 36. Ra8 {[%clk 0:01:22.9]} 36... e5 {[%clk 0:01:39.5]} 37. Rxa5
{[%clk 0:01:13.8]} 37... exd4 {[%clk 0:01:38.1]} 38. exd4 {[%clk 0:01:14]} 38...
Rf6+ {[%clk 0:01:36.7]} 39. Ke2 {[%clk 0:01:14.2]} 39... Rg6 {[%clk 0:01:36.4]}
40. g3 {[%clk 0:01:13.3]} 40... h4 {[%clk 0:01:36]} 41. Ra3 {[%clk 0:01:10.7]}
41... Kc6 {[%clk 0:01:18.3]} 42. Kf2 {[%clk 0:01:08.2]} 42... Rf6+ {[%clk
0:01:12.4]} 43. Kg2 {[%clk 0:01:07.4]} 43... hxg3 {[%clk 0:01:12.8]} 44. Rxg3
{[%clk 0:01:02]} 44... Kb5 {[%clk 0:01:05.1]} 45. Rg7 {[%clk 0:00:56]} 45... Kc4
{[%clk 0:00:58.1]} 46. Rxb7 {[%clk 0:00:54.4]} 46... e3 {[%clk 0:00:58.6]} 47.
Re7 {[%clk 0:00:52.4]} 47... Kd3 {[%clk 0:00:59.2]} 48. b7 {[%clk 0:00:47.9]}
48... Rg6+ {[%clk 0:00:59.6]} 49. Kh3 {[%clk 0:00:47.4]} 49... Rg8 {[%clk
0:00:59.6]} 50. c6 {[%clk 0:00:45.7]} 50... Ke2 {[%clk 0:00:49.8]} 51. c7 {[%clk
0:00:43]} 51... Kf3 {[%clk 0:00:50.3]} 52. c8=Q {[%clk 0:00:35.7]} 52... Rh8+
{[%clk 0:00:48]} 53. Qxh8 {[%clk 0:00:35]} 1-0

[Event "Late-Titled-Tuesday-Blitz-August-29-2023"]
[Site "Chess.com"]
[Date "2023.08.29"]
[Round "3"]
[White "jamengrand"]
[Black "burbur555"]
[Result "0-1"]
[WhiteElo "2345"]
[BlackElo "2553"]
[TimeControl "180+1"]
[EndTime "14:27:24 PDT"]
[Termination "burbur555 won by resignation"]

1. c4 {[%clk 0:03:00.9]} 1... c6 {[%clk 0:02:56.3]} 2. g3 {[%clk 0:03:00.6]}
2... d5 {[%clk 0:02:56.4]} 3. Bg2 {[%clk 0:03:01.1]} 3... Nf6 {[%clk 0:02:56.5]}
4. Nf3 {[%clk 0:03:01.3]} 4... Bf5 {[%clk 0:02:55.7]} 5. cxd5 {[%clk 0:02:59]}
5... cxd5 {[%clk 0:02:54.7]} 6. d3 {[%clk 0:02:59.5]} 6... Nc6 {[%clk
0:02:53.1]} 7. O-O {[%clk 0:02:57.8]} 7... e6 {[%clk 0:02:51.7]} 8. Nc3 {[%clk
0:02:57.4]} 8... Be7 {[%clk 0:02:47.9]} 9. h3 {[%clk 0:02:47.5]} 9... h6 {[%clk
0:02:46.9]} 10. Bd2 {[%clk 0:02:41.5]} 10... O-O {[%clk 0:02:45.7]} 11. Rc1
{[%clk 0:02:41.5]} 11... e5 {[%clk 0:02:33.8]} 12. e4 {[%clk 0:02:00.3]} 12...
dxe4 {[%clk 0:02:30.6]} 13. Nh4 {[%clk 0:02:00.7]} 13... Be6 {[%clk 0:02:22.9]}
14. dxe4 {[%clk 0:01:57.9]} 14... Nb4 {[%clk 0:02:14.6]} 15. Nf5 {[%clk
0:01:51.4]} 15... Nd3 {[%clk 0:02:05.2]} 16. Nxe7+ {[%clk 0:01:49.5]} 16... Qxe7
{[%clk 0:02:04.5]} 17. Rb1 {[%clk 0:01:46.8]} 17... Rfd8 {[%clk 0:02:02.8]} 18.
Qf3 {[%clk 0:01:16.1]} 18... Rac8 {[%clk 0:01:43.9]} 19. Rfd1 {[%clk 0:01:16]}
19... Bc4 {[%clk 0:01:41.6]} 20. Bf1 {[%clk 0:01:09.8]} 20... Nb4 {[%clk
0:01:38]} 21. Bxc4 {[%clk 0:01:08.1]} 21... Rxc4 {[%clk 0:01:37.8]} 22. a3
{[%clk 0:01:00.1]} 22... Nc2 {[%clk 0:01:32.5]} 23. Qe2 {[%clk 0:00:52.2]} 23...
Rc7 {[%clk 0:01:28.9]} 24. Nb5 {[%clk 0:00:31.2]} 24... Rcd7 {[%clk 0:01:26.7]}
25. Bc3 {[%clk 0:00:31]} 25... Nd4 {[%clk 0:01:21.2]} 26. Bxd4 {[%clk 0:00:23]}
26... exd4 {[%clk 0:01:21.1]} 27. Nxa7 {[%clk 0:00:23.4]} 27... d3 {[%clk
0:01:21.1]} 28. Qe3 {[%clk 0:00:22.3]} 28... Nxe4 {[%clk 0:00:48.3]} 29. Nb5
{[%clk 0:00:20.6]} 29... Qe6 {[%clk 0:00:45.3]} 30. Kh2 {[%clk 0:00:18.1]} 30...
Qf5 {[%clk 0:00:43]} 31. Nc3 {[%clk 0:00:13.4]} 31... Nxf2 {[%clk 0:00:37.4]}
32. Rf1 {[%clk 0:00:11.1]} 32... Qxh3+ {[%clk 0:00:36.4]} 33. Kg1 {[%clk
0:00:10.7]} 33... Ng4 {[%clk 0:00:36.1]} 34. Qd2 {[%clk 0:00:10.1]} 34... Re7
{[%clk 0:00:34.7]} 35. Qg2 {[%clk 0:00:09.8]} 35... Qxg2+ {[%clk 0:00:34]} 36.
Kxg2 {[%clk 0:00:10.2]} 36... Ne3+ {[%clk 0:00:33.9]} 0-1

[Event "Late-Titled-Tuesday-Blitz-August-29-2023"]
[Site "Chess.com"]
[Date "2023.08.29"]
[Round "3"]
[White "GameOverBro"]
[Black "Rinqed222"]
[Result "1-0"]
[WhiteElo "2466"]
[BlackElo "2240"]
[TimeControl "180+1"]
[EndTime "14:27:35 PDT"]
[Termination "GameOverBro won on time"]

1. e4 {[%clk 0:03:00.3]} 1... e6 {[%clk 0:02:59.9]} 2. d4 {[%clk 0:03:00.4]}
2... d5 {[%clk 0:02:58.7]} 3. Nd2 {[%clk 0:03:00.7]} 3... c5 {[%clk 0:02:53.9]}
4. exd5 {[%clk 0:02:57.6]} 4... Qxd5 {[%clk 0:02:54.8]} 5. Ngf3 {[%clk
0:02:57.4]} 5... cxd4 {[%clk 0:02:54.7]} 6. Bc4 {[%clk 0:02:57.2]} 6... Qd8
{[%clk 0:02:53.7]} 7. Nb3 {[%clk 0:02:57]} 7... Nc6 {[%clk 0:02:54]} 8. Nbxd4
{[%clk 0:02:56.8]} 8... Nxd4 {[%clk 0:02:53.2]} 9. Nxd4 {[%clk 0:02:57.7]} 9...
Nf6 {[%clk 0:02:53]} 10. Be3 {[%clk 0:02:53.5]} 10... a6 {[%clk 0:02:45.9]} 11.
Qf3 {[%clk 0:02:52.7]} 11... Qc7 {[%clk 0:02:42]} 12. Bb3 {[%clk 0:02:45.3]}
12... Bd6 {[%clk 0:02:33.4]} 13. O-O-O {[%clk 0:02:43.9]} 13... O-O {[%clk
0:02:22.8]} 14. Kb1 {[%clk 0:02:39.7]} 14... Bd7 {[%clk 0:02:10.9]} 15. h4
{[%clk 0:02:28.7]} 15... a5 {[%clk 0:02:00.1]} 16. a4 {[%clk 0:02:24.4]} 16...
e5 {[%clk 0:01:25.1]} 17. Nf5 {[%clk 0:02:22.6]} 17... e4 {[%clk 0:01:22.7]} 18.
Qh3 {[%clk 0:02:22.4]} 18... g6 {[%clk 0:01:12.1]} 19. Nh6+ {[%clk 0:02:22.2]}
19... Kg7 {[%clk 0:01:09.4]} 20. g4 {[%clk 0:02:22.3]} 20... Bf4 {[%clk
0:00:54.7]} 21. Bd4 {[%clk 0:01:41.5]} 21... Be5 {[%clk 0:00:40.5]} 22. Be3
{[%clk 0:01:07.3]} 22... Bf4 {[%clk 0:00:30.8]} 23. Qg2 {[%clk 0:01:07.2]} 23...
Bxe3 {[%clk 0:00:23.5]} 24. fxe3 {[%clk 0:01:06.5]} 24... Bc6 {[%clk 0:00:15.5]}
25. g5 {[%clk 0:01:04.6]} 25... Nd7 {[%clk 0:00:12.4]} 26. h5 {[%clk 0:00:58.1]}
26... Nc5 {[%clk 0:00:06.3]} 27. Qf2 {[%clk 0:00:37.3]} 27... Qe5 {[%clk
0:00:03.1]} 28. Ng4 {[%clk 0:00:23]} 28... Qxg5 {[%clk 0:00:01.4]} 29. Nf6
{[%clk 0:00:18.9]} 1-0

[Event "Late-Titled-Tuesday-Blitz-August-29-2023"]
[Site "Chess.com"]
[Date "2023.08.29"]
[Round "3"]
[White "BlackBoarder"]
[Black "mistrzemi"]
[Result "1-0"]
[WhiteElo "2741"]
[BlackElo "2352"]
[TimeControl "180+1"]
[EndTime "14:27:36 PDT"]
[Termination "BlackBoarder won on time"]

1. e4 {[%clk 0:03:00.9]} 1... e6 {[%clk 0:02:58.9]} 2. d4 {[%clk 0:03:00.7]}
2... d5 {[%clk 0:02:58.9]} 3. Bd3 {[%clk 0:03:01.2]} 3... dxe4 {[%clk
0:02:58.5]} 4. Bxe4 {[%clk 0:03:02.1]} 4... Nf6 {[%clk 0:02:59.1]} 5. Bf3 {[%clk
0:03:02.6]} 5... c5 {[%clk 0:02:59.8]} 6. Ne2 {[%clk 0:03:03.2]} 6... Nc6 {[%clk
0:03:00.4]} 7. Be3 {[%clk 0:03:03.5]} 7... cxd4 {[%clk 0:03:01.1]} 8. Nxd4
{[%clk 0:03:03.9]} 8... Ne5 {[%clk 0:03:01.8]} 9. Nc3 {[%clk 0:03:04.3]} 9...
Be7 {[%clk 0:03:00.2]} 10. Qe2 {[%clk 0:03:00.5]} 10... Nxf3+ {[%clk 0:02:59.3]}
11. Qxf3 {[%clk 0:03:00.1]} 11... O-O {[%clk 0:02:59.5]} 12. O-O-O {[%clk
0:03:00.4]} 12... Qa5 {[%clk 0:02:53.9]} 13. g4 {[%clk 0:02:53.9]} 13... Bb4
{[%clk 0:01:51.6]} 14. g5 {[%clk 0:02:46.1]} 14... Nd5 {[%clk 0:01:37.5]} 15.
Nxd5 {[%clk 0:02:19.4]} 15... exd5 {[%clk 0:01:38.4]} 16. Kb1 {[%clk 0:01:51.2]}
16... Be6 {[%clk 0:01:16.1]} 17. h4 {[%clk 0:01:43.6]} 17... Qa6 {[%clk
0:00:38]} 18. h5 {[%clk 0:01:14.3]} 18... Rae8 {[%clk 0:00:31.7]} 19. h6 {[%clk
0:00:51.2]} 19... f5 {[%clk 0:00:05.8]} 20. hxg7 {[%clk 0:00:44.5]} 20... Kxg7
{[%clk 0:00:06.2]} 21. Qh5 {[%clk 0:00:31.4]} 21... Bg8 {[%clk 0:00:05.8]} 22.
Bf4 {[%clk 0:00:13.4]} 22... Qg6 {[%clk 0:00:05.8]} 23. Qh3 {[%clk 0:00:13.2]}
23... Re4 {[%clk 0:00:05.6]} 24. Qg3 {[%clk 0:00:10.8]} 24... Rfe8 {[%clk
0:00:05.5]} 25. f3 {[%clk 0:00:10.4]} 25... R4e7 {[%clk 0:00:02.3]} 26. Qh3
{[%clk 0:00:10.3]} 26... Bd6 {[%clk 0:00:01.6]} 27. Nxf5+ {[%clk 0:00:09.6]} 1-0

[Event "Late-Titled-Tuesday-Blitz-August-29-2023"]
[Site "Chess.com"]
[Date "2023.08.29"]
[Round "3"]
[White "DrVelja"]
[Black "Ramosha"]
[Result "0-1"]
[WhiteElo "2865"]
[BlackElo "2621"]
[TimeControl "180+1"]
[EndTime "14:27:41 PDT"]
[Termination "Ramosha won by resignation"]

1. e4 {[%clk 0:03:00.9]} 1... c6 {[%clk 0:03:00.1]} 2. Nc3 {[%clk 0:02:56.4]}
2... d5 {[%clk 0:03:00.2]} 3. Nf3 {[%clk 0:02:56.9]} 3... dxe4 {[%clk
0:02:59.3]} 4. Nxe4 {[%clk 0:02:57.3]} 4... Nf6 {[%clk 0:02:59.7]} 5. Qe2 {[%clk
0:02:57.6]} 5... Bf5 {[%clk 0:02:56.7]} 6. Nxf6+ {[%clk 0:02:48.5]} 6... gxf6
{[%clk 0:02:57.4]} 7. d3 {[%clk 0:02:48.7]} 7... Nd7 {[%clk 0:02:56.1]} 8. g3
{[%clk 0:02:47.1]} 8... e6 {[%clk 0:02:49.7]} 9. Bg2 {[%clk 0:02:46.4]} 9... Qc7
{[%clk 0:02:49.8]} 10. Nh4 {[%clk 0:02:41.7]} 10... Bg6 {[%clk 0:02:48.7]} 11.
O-O {[%clk 0:02:41.5]} 11... Bd6 {[%clk 0:02:46.5]} 12. Bd2 {[%clk 0:02:33.8]}
12... O-O-O {[%clk 0:02:45.5]} 13. b4 {[%clk 0:02:31.8]} 13... Rhe8 {[%clk
0:02:37.8]} 14. Rab1 {[%clk 0:02:26.8]} 14... Nb6 {[%clk 0:02:29.1]} 15. b5
{[%clk 0:02:23.4]} 15... c5 {[%clk 0:02:27.9]} 16. a4 {[%clk 0:02:20]} 16... Be5
{[%clk 0:02:18.4]} 17. a5 {[%clk 0:02:13.2]} 17... Nd5 {[%clk 0:02:17.9]} 18. b6
{[%clk 0:02:11.9]} 18... axb6 {[%clk 0:02:17.6]} 19. axb6 {[%clk 0:02:12.7]}
19... Qd6 {[%clk 0:02:17.1]} 20. Qf3 {[%clk 0:01:54.8]} 20... Re7 {[%clk
0:02:05.5]} 21. Rb5 {[%clk 0:01:50]} 21... Nc3 {[%clk 0:01:59.8]} 22. Rb3 {[%clk
0:01:34.7]} 22... Nd5 {[%clk 0:01:56.6]} 23. Rfb1 {[%clk 0:01:28.7]} 23... f5
{[%clk 0:01:45.7]} 24. Rb5 {[%clk 0:01:13.6]} 24... Nc3 {[%clk 0:01:28]} 25. Ra5
{[%clk 0:01:12.4]} 25... Nxb1 {[%clk 0:01:21.7]} 26. Ra8+ {[%clk 0:00:57.1]}
26... Kd7 {[%clk 0:01:21.2]} 27. Qxb7+ {[%clk 0:00:57.8]} 27... Ke8 {[%clk
0:01:21.5]} 28. Qc6+ {[%clk 0:00:58.4]} 28... Qxc6 {[%clk 0:01:20.2]} 29. Bxc6+
{[%clk 0:00:59.3]} 29... Rd7 {[%clk 0:01:20.1]} 30. Bxd7+ {[%clk 0:00:47.2]}
30... Kxd7 {[%clk 0:01:19.9]} 31. Ra7+ {[%clk 0:00:47.3]} 31... Kc6 {[%clk
0:01:17.8]} 32. Ba5 {[%clk 0:00:46.5]} 32... Rd7 {[%clk 0:01:10.6]} 33. Nf3
{[%clk 0:00:45]} 33... Bb8 {[%clk 0:01:08.1]} 34. Rxd7 {[%clk 0:00:14.3]} 34...
Kxd7 {[%clk 0:01:09]} 35. Kf1 {[%clk 0:00:10.9]} 35... Kc6 {[%clk 0:01:08.6]}
36. c4 {[%clk 0:00:10]} 36... f4 {[%clk 0:00:59.9]} 37. Ne1 {[%clk 0:00:10.2]}
37... fxg3 {[%clk 0:00:56.5]} 38. hxg3 {[%clk 0:00:09.8]} 38... Kb7 {[%clk
0:00:56.7]} 39. f4 {[%clk 0:00:09.3]} 39... Ka6 {[%clk 0:00:56.4]} 0-1